[Event "Titled Tuesday Blitz July 11 Early 2023"]
[White "Timofeev, Artyom"]
[Black "Timerkhanov, Alexander"]
[WhiteFideId "4140419"]
[BlackFideId "24177938"]
[WhiteElo "2840"]
[BlackElo "2711"]
[Result "1-0"]
[Round "7"]
[TimeControl "180+2"]
[Date "2023.07.11"]
[WhiteClock "0:01:19"]
[BlackClock "0:00:09"]
[Board "24"]

1. d4 {[%clk 0:03:00]}  d5 {[%clk 0:02:59]} 2. c4 {[%clk 0:03:00]}  c6 {[%clk 0:02:59]} 3. Nf3 {[%clk 0:02:59]}  Nf6 {[%clk 0:02:59]} 4. Nc3 {[%clk 0:02:58]}  a6 {[%clk 0:02:59]} 5. Ne5 {[%clk 0:02:57]}  Nbd7 {[%clk 0:02:50]} 6. Bf4 {[%clk 0:02:56]}  Nxe5 {[%clk 0:02:40]} 7. dxe5 {[%clk 0:02:55]}  Ne4 {[%clk 0:02:38]} 8. Nxe4 {[%clk 0:02:48]}  dxe4 {[%clk 0:02:38]} 9. Qxd8+ {[%clk 0:02:47]}  Kxd8 {[%clk 0:02:39]} 10. O-O-O+ {[%clk 0:02:47]}  Ke8 {[%clk 0:02:38]} 11. e3 {[%clk 0:02:35]}  Bg4 {[%clk 0:02:35]} 12. Rd4 {[%clk 0:02:31]}  Bf5 {[%clk 0:02:34]} 13. Be2 {[%clk 0:02:29]}  h6 {[%clk 0:02:24]} 14. g4 {[%clk 0:02:28]}  Bh7 {[%clk 0:02:22]} 15. Rhd1 {[%clk 0:02:28]}  g5 {[%clk 0:02:20]} 16. Bg3 {[%clk 0:02:27]}  h5 {[%clk 0:01:54]} 17. h3 {[%clk 0:02:25]}  h4 {[%clk 0:01:49]} 18. Bh2 {[%clk 0:02:25]}  e6 {[%clk 0:01:45]} 19. Rd7 {[%clk 0:02:23]}  Rb8 {[%clk 0:01:28]} 20. Rc7 {[%clk 0:02:12]}  Bb4 {[%clk 0:01:27]} 21. Rdd7 {[%clk 0:02:06]}  Bg6 {[%clk 0:00:55]} 22. Rxb7 {[%clk 0:02:05]}  Rxb7 {[%clk 0:00:55]} 23. Rxb7 {[%clk 0:02:05]}  Be7 {[%clk 0:00:55]} 24. c5 {[%clk 0:01:54]}  a5 {[%clk 0:00:52]} 25. Ra7 {[%clk 0:01:52]}  Kf8 {[%clk 0:00:50]} 26. Rxa5 {[%clk 0:01:51]}  Kg7 {[%clk 0:00:51]} 27. b4 {[%clk 0:01:50]}  Rb8 {[%clk 0:00:48]} 28. a3 {[%clk 0:01:50]}  Rc8 {[%clk 0:00:47]} 29. Ra7 {[%clk 0:01:49]}  Kf8 {[%clk 0:00:46]} 30. Ba6 {[%clk 0:01:40]}  Rd8 {[%clk 0:00:44]} 31. Rc7 {[%clk 0:01:37]}  f5 {[%clk 0:00:44]} 32. exf6 {[%clk 0:01:34]}  Bxf6 {[%clk 0:00:45]} 33. Bd6+ {[%clk 0:01:33]}  Kg8 {[%clk 0:00:44]} 34. Rc8 {[%clk 0:01:27]}  Rxc8 {[%clk 0:00:37]} 35. Bxc8 {[%clk 0:01:27]}  Bc3 {[%clk 0:00:21]} 36. Bxe6+ {[%clk 0:01:25]}  Kh7 {[%clk 0:00:09]} 37. b5 {[%clk 0:01:19]} 1-0


[Site "https://www.chess.com"]

[Event "Titled Tuesday Blitz July 11 Early 2023"]
[White "Lavrik, Dmitry"]
[Black "Llorente Zaro, Alfonso"]
[WhiteFideId "24113190"]
[BlackFideId "2254131"]
[WhiteElo "2682"]
[BlackElo "2812"]
[Result "1/2-1/2"]
[Round "7"]
[TimeControl "180+2"]
[Date "2023.07.11"]
[WhiteClock "0:00:07"]
[BlackClock "0:00:06"]
[Board "25"]

1. c4 {[%clk 0:03:00]}  Nf6 {[%clk 0:02:42]} 2. Nf3 {[%clk 0:02:57]}  e6 {[%clk 0:02:43]} 3. g3 {[%clk 0:02:57]}  d5 {[%clk 0:02:43]} 4. Bg2 {[%clk 0:02:57]}  c5 {[%clk 0:02:43]} 5. cxd5 {[%clk 0:02:57]}  Nxd5 {[%clk 0:02:42]} 6. O-O {[%clk 0:02:56]}  Nc6 {[%clk 0:02:42]} 7. d4 {[%clk 0:02:53]}  cxd4 {[%clk 0:02:43]} 8. Nxd4 {[%clk 0:02:53]}  Bd7 {[%clk 0:02:44]} 9. b3 {[%clk 0:02:36]}  Nxd4 {[%clk 0:02:38]} 10. Qxd4 {[%clk 0:02:35]}  Be7 {[%clk 0:02:39]} 11. Bb2 {[%clk 0:02:32]}  Bf6 {[%clk 0:02:39]} 12. Qd2 {[%clk 0:02:32]}  Bc6 {[%clk 0:02:39]} 13. Rd1 {[%clk 0:02:26]}  O-O {[%clk 0:02:36]} 14. e4 {[%clk 0:02:25]}  Nb4 {[%clk 0:02:25]} 15. Qe2 {[%clk 0:02:24]}  Qxd1+ {[%clk 0:02:16]} 16. Qxd1 {[%clk 0:02:21]}  Bxb2 {[%clk 0:02:17]} 17. Nd2 {[%clk 0:02:18]}  Bxa1 {[%clk 0:02:15]} 18. Qxa1 {[%clk 0:02:18]}  Rfd8 {[%clk 0:02:15]} 19. Nc4 {[%clk 0:02:12]}  Rac8 {[%clk 0:02:11]} 20. h4 {[%clk 0:02:12]}  Nc2 {[%clk 0:02:06]} 21. Qb2 {[%clk 0:02:03]}  Ne1 {[%clk 0:02:03]} 22. Na5 {[%clk 0:01:52]}  Nxg2 {[%clk 0:01:46]} 23. Nxc6 {[%clk 0:01:52]}  Rxc6 {[%clk 0:01:47]} 24. Kxg2 {[%clk 0:01:52]}  h6 {[%clk 0:01:43]} 25. g4 {[%clk 0:01:50]}  Rdc8 {[%clk 0:01:42]} 26. Qd4 {[%clk 0:01:41]}  a6 {[%clk 0:01:35]} 27. g5 {[%clk 0:01:41]}  hxg5 {[%clk 0:01:34]} 28. hxg5 {[%clk 0:01:42]}  g6 {[%clk 0:01:35]} 29. Kg3 {[%clk 0:01:18]}  Rc5 {[%clk 0:01:34]} 30. Kg4 {[%clk 0:01:15]}  Rc2 {[%clk 0:01:16]} 31. a4 {[%clk 0:01:09]}  R2c3 {[%clk 0:01:13]} 32. Qb6 {[%clk 0:01:04]}  R8c7 {[%clk 0:01:10]} 33. Kf4 {[%clk 0:01:01]}  R3c5 {[%clk 0:01:10]} 34. b4 {[%clk 0:00:59]}  e5+ {[%clk 0:01:08]} 35. Kg4 {[%clk 0:00:59]}  Rc4 {[%clk 0:01:04]} 36. Kf3 {[%clk 0:00:47]}  Rd7 {[%clk 0:01:03]} 37. Ke3 {[%clk 0:00:38]}  Rdd4 {[%clk 0:00:59]} 38. Qxb7 {[%clk 0:00:37]}  Rxb4 {[%clk 0:00:57]} 39. Qa8+ {[%clk 0:00:26]}  Kg7 {[%clk 0:00:54]} 40. a5 {[%clk 0:00:26]}  Ra4 {[%clk 0:00:29]} 41. Qxa6 {[%clk 0:00:15]}  Rxe4+ {[%clk 0:00:29]} 42. Kd3 {[%clk 0:00:09]}  Red4+ {[%clk 0:00:23]} 43. Ke3 {[%clk 0:00:09]}  Rd5 {[%clk 0:00:20]} 44. Qf6+ {[%clk 0:00:06]}  Kg8 {[%clk 0:00:20]} 45. a6 {[%clk 0:00:06]}  Ra3+ {[%clk 0:00:10]} 46. Ke2 {[%clk 0:00:06]}  Rda5 {[%clk 0:00:09]} 47. Qd8+ {[%clk 0:00:06]}  Kg7 {[%clk 0:00:09]} 48. Qf6+ {[%clk 0:00:06]}  Kg8 {[%clk 0:00:09]} 49. Qd8+ {[%clk 0:00:07]}  Kg7 {[%clk 0:00:06]} 50. Qf6+ {[%clk 0:00:07]}  Kg8 {[%clk 0:00:06]} 1/2-1/2


[Site "https://www.chess.com"]

[Event "Titled Tuesday Blitz July 11 Early 2023"]
[White "Ambartsumova, Karina"]
[Black "Svane, Frederik"]
[WhiteFideId "4166299"]
[BlackFideId "12923044"]
[WhiteElo "2590"]
[BlackElo "2791"]
[Result "0-1"]
[Round "7"]
[TimeControl "180+2"]
[Date "2023.07.11"]
[WhiteClock "0:00:00"]
[BlackClock "0:00:04"]
[Board "27"]

1. d4 {[%clk 0:03:00]}  c6 {[%clk 0:03:00]} 2. c4 {[%clk 0:02:55]}  a6 {[%clk 0:02:58]} 3. e4 {[%clk 0:02:50]}  d5 {[%clk 0:02:59]} 4. Nc3 {[%clk 0:02:50]}  dxe4 {[%clk 0:02:58]} 5. Nxe4 {[%clk 0:02:50]}  Bf5 {[%clk 0:02:47]} 6. Ng3 {[%clk 0:02:50]}  Bg6 {[%clk 0:02:46]} 7. Nh3 {[%clk 0:02:43]}  e6 {[%clk 0:02:45]} 8. Nf4 {[%clk 0:02:43]}  Bd6 {[%clk 0:02:44]} 9. h4 {[%clk 0:02:34]}  Bxf4 {[%clk 0:02:14]} 10. Bxf4 {[%clk 0:02:33]}  h6 {[%clk 0:02:14]} 11. h5 {[%clk 0:02:29]}  Bh7 {[%clk 0:02:14]} 12. Be2 {[%clk 0:01:42]}  Nf6 {[%clk 0:02:15]} 13. O-O {[%clk 0:01:31]}  O-O {[%clk 0:02:15]} 14. Qd2 {[%clk 0:01:30]}  Nbd7 {[%clk 0:02:14]} 15. Rad1 {[%clk 0:01:28]}  Re8 {[%clk 0:02:14]} 16. Qc3 {[%clk 0:01:22]}  Rc8 {[%clk 0:02:14]} 17. Rfe1 {[%clk 0:01:21]}  Qe7 {[%clk 0:02:12]} 18. Bf3 {[%clk 0:01:19]}  b5 {[%clk 0:02:04]} 19. b3 {[%clk 0:00:43]}  bxc4 {[%clk 0:01:04]} 20. bxc4 {[%clk 0:00:43]}  Nb6 {[%clk 0:01:04]} 21. Rc1 {[%clk 0:00:35]}  Qa7 {[%clk 0:00:33]} 22. Qa5 {[%clk 0:00:32]}  Nbd7 {[%clk 0:00:34]} 23. Be3 {[%clk 0:00:23]}  c5 {[%clk 0:00:25]} 24. Red1 {[%clk 0:00:21]}  e5 {[%clk 0:00:10]} 25. dxc5 {[%clk 0:00:18]}  Nxc5 {[%clk 0:00:10]} 26. Bd5 {[%clk 0:00:18]}  Qe7 {[%clk 0:00:09]} 27. Bxc5 {[%clk 0:00:14]}  Rxc5 {[%clk 0:00:10]} 28. Qxa6 {[%clk 0:00:14]}  e4 {[%clk 0:00:10]} 29. Nf1 {[%clk 0:00:13]}  Nxh5 {[%clk 0:00:08]} 30. Ne3 {[%clk 0:00:12]}  Nf4 {[%clk 0:00:08]} 31. Qa3 {[%clk 0:00:12]}  Ne2+ {[%clk 0:00:08]} 32. Kf1 {[%clk 0:00:12]}  Nxc1 {[%clk 0:00:09]} 33. Rxc1 {[%clk 0:00:12]}  Bg6 {[%clk 0:00:06]} 34. Rb1 {[%clk 0:00:12]}  Rc7 {[%clk 0:00:06]} 35. Qc3 {[%clk 0:00:11]}  Qc5 {[%clk 0:00:06]} 36. Rb5 {[%clk 0:00:10]}  Qxb5 {[%clk 0:00:05]} 37. g3 {[%clk 0:00:05]}  Qc5 {[%clk 0:00:05]} 38. Kg2 {[%clk 0:00:05]}  Kh7 {[%clk 0:00:05]} 39. a4 {[%clk 0:00:05]}  Ra7 {[%clk 0:00:06]} 40. Qb3 {[%clk 0:00:05]}  Rc8 {[%clk 0:00:03]} 41. Nc2 {[%clk 0:00:04]}  Qc7 {[%clk 0:00:02]} 42. Ne3 {[%clk 0:00:04]}  Rb8 {[%clk 0:00:02]} 43. Qc2 {[%clk 0:00:04]}  Qc5 {[%clk 0:00:03]} 44. Qd1 {[%clk 0:00:04]}  Re7 {[%clk 0:00:03]} 45. Qc2 {[%clk 0:00:04]}  Rb4 {[%clk 0:00:03]} 46. Qd1 {[%clk 0:00:03]}  Rb2 {[%clk 0:00:03]} 47. Qe1 {[%clk 0:00:03]}  Qd4 {[%clk 0:00:04]} 48. a5 {[%clk 0:00:02]}  Qd2 {[%clk 0:00:04]} 49. Qf1 {[%clk 0:00:00]}  Qxe3 {[%clk 0:00:04]} 0-1


[Site "https://www.chess.com"]

[Event "Titled Tuesday Blitz July 11 Early 2023"]
[White "Rosh Jain"]
[Black "Zemlyanskii, Ivan"]
[WhiteFideId "25789465"]
[BlackFideId "24249971"]
[WhiteElo "2417"]
[BlackElo "2789"]
[Result "0-1"]
[Round "7"]
[TimeControl "180+2"]
[Date "2023.07.11"]
[WhiteClock "0:00:13"]
[BlackClock "0:00:10"]
[Board "28"]

1. e4 {[%clk 0:02:59]}  c5 {[%clk 0:02:59]} 2. Nc3 {[%clk 0:02:58]}  e6 {[%clk 0:02:58]} 3. Nge2 {[%clk 0:02:57]}  Nc6 {[%clk 0:02:57]} 4. d4 {[%clk 0:02:57]}  cxd4 {[%clk 0:02:57]} 5. Nxd4 {[%clk 0:02:58]}  Nf6 {[%clk 0:02:57]} 6. Be3 {[%clk 0:02:56]}  Bb4 {[%clk 0:02:57]} 7. Bd3 {[%clk 0:02:54]}  d5 {[%clk 0:02:53]} 8. exd5 {[%clk 0:02:53]}  Nxd5 {[%clk 0:02:53]} 9. Nxc6 {[%clk 0:02:50]}  Nxe3 {[%clk 0:02:50]} 10. Nxd8 {[%clk 0:02:47]}  Nxd1 {[%clk 0:02:49]} 11. Rxd1 {[%clk 0:02:46]}  Kxd8 {[%clk 0:02:49]} 12. Bxh7+ {[%clk 0:02:45]}  Ke7 {[%clk 0:02:49]} 13. Bd3 {[%clk 0:02:45]}  Bd7 {[%clk 0:02:44]} 14. O-O {[%clk 0:02:43]}  Rac8 {[%clk 0:02:41]} 15. Ne4 {[%clk 0:02:41]}  Bc6 {[%clk 0:02:36]} 16. c3 {[%clk 0:02:37]}  Ba5 {[%clk 0:02:37]} 17. Ng3 {[%clk 0:02:37]}  b5 {[%clk 0:02:23]} 18. Rfe1 {[%clk 0:02:36]}  g6 {[%clk 0:02:23]} 19. Re5 {[%clk 0:02:30]}  Bc7 {[%clk 0:02:19]} 20. Re2 {[%clk 0:02:25]}  Rh4 {[%clk 0:02:14]} 21. Rde1 {[%clk 0:02:23]}  e5 {[%clk 0:01:13]} 22. Be4 {[%clk 0:02:14]}  Bd7 {[%clk 0:01:11]} 23. Bd5 {[%clk 0:02:05]}  f5 {[%clk 0:01:09]} 24. h3 {[%clk 0:01:57]}  e4 {[%clk 0:01:01]} 25. Nf1 {[%clk 0:01:55]}  Bb6 {[%clk 0:00:53]} 26. Kh1 {[%clk 0:01:52]}  Rc5 {[%clk 0:00:36]} 27. Bb7 {[%clk 0:01:47]}  Kd8 {[%clk 0:00:32]} 28. f3 {[%clk 0:01:46]}  Kc7 {[%clk 0:00:31]} 29. Ba6 {[%clk 0:01:37]}  exf3 {[%clk 0:00:28]} 30. gxf3 {[%clk 0:01:36]}  Rxh3+ {[%clk 0:00:28]} 31. Kg2 {[%clk 0:01:36]}  Rh7 {[%clk 0:00:27]} 32. Re7 {[%clk 0:01:33]}  Rxe7 {[%clk 0:00:20]} 33. Rxe7 {[%clk 0:01:34]}  Rd5 {[%clk 0:00:18]} 34. Rg7 {[%clk 0:01:34]}  g5 {[%clk 0:00:11]} 35. Rxg5 {[%clk 0:01:30]}  Bc6 {[%clk 0:00:11]} 36. Rg7+ {[%clk 0:01:29]}  Kb8 {[%clk 0:00:11]} 37. Rg8+ {[%clk 0:01:28]}  Kc7 {[%clk 0:00:11]} 38. Bc8 {[%clk 0:01:28]}  Rd3 {[%clk 0:00:10]} 39. Nh2 {[%clk 0:00:36]}  Rd2+ {[%clk 0:00:10]} 40. Kh3 {[%clk 0:00:36]}  Rxb2 {[%clk 0:00:11]} 41. Bxf5 {[%clk 0:00:35]}  Rxa2 {[%clk 0:00:11]} 42. Rg7+ {[%clk 0:00:34]}  Kd6 {[%clk 0:00:11]} 43. Rg6+ {[%clk 0:00:34]}  Kc5 {[%clk 0:00:11]} 44. Rg5 {[%clk 0:00:30]}  Bd8 {[%clk 0:00:12]} 45. Rh5 {[%clk 0:00:28]}  Kb6 {[%clk 0:00:12]} 46. f4 {[%clk 0:00:25]}  Ra3 {[%clk 0:00:12]} 47. Rh6 {[%clk 0:00:21]}  Rxc3+ {[%clk 0:00:13]} 48. Kg4 {[%clk 0:00:21]}  a5 {[%clk 0:00:13]} 49. Be4 {[%clk 0:00:20]}  a4 {[%clk 0:00:14]} 50. f5 {[%clk 0:00:20]}  a3 {[%clk 0:00:13]} 51. Bd5 {[%clk 0:00:16]}  Kb7 {[%clk 0:00:12]} 52. Rh7+ {[%clk 0:00:15]}  Kb8 {[%clk 0:00:11]} 53. Be6 {[%clk 0:00:15]}  b4 {[%clk 0:00:11]} 54. f6 {[%clk 0:00:15]}  Bxf6 {[%clk 0:00:11]} 55. Rf7 {[%clk 0:00:14]}  Bd8 {[%clk 0:00:10]} 56. Rf8 {[%clk 0:00:14]}  Kc7 {[%clk 0:00:11]} 57. Rf7+ {[%clk 0:00:14]}  Kd6 {[%clk 0:00:11]} 58. Bf5 {[%clk 0:00:15]}  b3 {[%clk 0:00:11]} 59. Rf8 {[%clk 0:00:16]}  Be7 {[%clk 0:00:10]} 60. Rb8 {[%clk 0:00:15]}  a2 {[%clk 0:00:10]} 61. Nf3 {[%clk 0:00:15]}  a1=Q {[%clk 0:00:10]} 62. Nd4 {[%clk 0:00:13]}  Qg1+ {[%clk 0:00:10]} 0-1


[Site "https://www.chess.com"]

[Event "Titled Tuesday Blitz July 11 Early 2023"]
[White "Movahed, Sina"]
[Black "Belov, Alexei"]
[WhiteFideId "42520835"]
[BlackFideId "4128206"]
[WhiteElo "3000"]
[BlackElo "2513"]
[Result "1-0"]
[Round "7"]
[TimeControl "180+2"]
[Date "2023.07.11"]
[WhiteClock "0:01:14"]
[BlackClock "0:00:03"]
[Board "29"]

1. e4 {[%clk 0:03:00]}  e6 {[%clk 0:03:00]} 2. d4 {[%clk 0:03:00]}  d5 {[%clk 0:03:00]} 3. e5 {[%clk 0:03:01]}  c5 {[%clk 0:03:00]} 4. c3 {[%clk 0:03:02]}  Qb6 {[%clk 0:03:00]} 5. Nf3 {[%clk 0:03:02]}  Nc6 {[%clk 0:03:01]} 6. Bd3 {[%clk 0:02:59]}  cxd4 {[%clk 0:03:00]} 7. O-O {[%clk 0:02:59]}  Bd7 {[%clk 0:02:58]} 8. Re1 {[%clk 0:02:58]}  Rc8 {[%clk 0:02:57]} 9. h4 {[%clk 0:02:58]}  Nge7 {[%clk 0:02:54]} 10. Na3 {[%clk 0:02:56]}  a6 {[%clk 0:02:46]} 11. Nc2 {[%clk 0:02:48]}  dxc3 {[%clk 0:02:44]} 12. bxc3 {[%clk 0:02:49]}  Na5 {[%clk 0:02:44]} 13. Be3 {[%clk 0:02:44]}  Qc7 {[%clk 0:02:40]} 14. h5 {[%clk 0:02:41]}  h6 {[%clk 0:02:39]} 15. Ncd4 {[%clk 0:02:33]}  Nc4 {[%clk 0:02:31]} 16. Rb1 {[%clk 0:02:17]}  Nxe3 {[%clk 0:02:26]} 17. Rxe3 {[%clk 0:02:18]}  Nc6 {[%clk 0:02:26]} 18. Qd2 {[%clk 0:02:07]}  Na5 {[%clk 0:02:21]} 19. Ne2 {[%clk 0:01:52]}  Bb5 {[%clk 0:02:04]} 20. Nfd4 {[%clk 0:01:46]}  Bxd3 {[%clk 0:01:54]} 21. Qxd3 {[%clk 0:01:47]}  Qc4 {[%clk 0:01:48]} 22. Qd1 {[%clk 0:01:40]}  Bc5 {[%clk 0:01:25]} 23. Rg3 {[%clk 0:01:39]}  O-O {[%clk 0:01:25]} 24. Nf4 {[%clk 0:01:34]}  Bxd4 {[%clk 0:01:22]} 25. cxd4 {[%clk 0:01:31]}  Qc2 {[%clk 0:01:20]} 26. Qe1 {[%clk 0:01:31]}  Nc4 {[%clk 0:01:15]} 27. Rxb7 {[%clk 0:01:28]}  Nd2 {[%clk 0:01:09]} 28. Nxe6 {[%clk 0:01:23]}  fxe6 {[%clk 0:00:19]} 29. Rgxg7+ {[%clk 0:01:17]}  Kh8 {[%clk 0:00:03]} 30. Qxd2 {[%clk 0:01:14]} 1-0


[Site "https://www.chess.com"]

[Event "Titled Tuesday Blitz July 11 Early 2023"]
[White "Nefedov, Sergey"]
[Black "Narayanan, Srinath"]
[WhiteFideId "24113417"]
[BlackFideId "5018420"]
[WhiteElo "2624"]
[BlackElo "2909"]
[Result "1-0"]
[Round "7"]
[TimeControl "180+2"]
[Date "2023.07.11"]
[WhiteClock "0:01:17"]
[BlackClock "0:00:01"]
[Board "30"]

1. d4 {[%clk 0:03:00]}  f5 {[%clk 0:02:58]} 2. g4 {[%clk 0:03:00]}  fxg4 {[%clk 0:02:57]} 3. h3 {[%clk 0:03:00]}  g3 {[%clk 0:02:56]} 4. fxg3 {[%clk 0:03:00]}  Nf6 {[%clk 0:02:57]} 5. Bg2 {[%clk 0:03:01]}  e6 {[%clk 0:02:56]} 6. e4 {[%clk 0:03:00]}  d6 {[%clk 0:02:50]} 7. Ne2 {[%clk 0:02:55]}  Nc6 {[%clk 0:02:50]} 8. O-O {[%clk 0:02:54]}  Be7 {[%clk 0:02:51]} 9. Nbc3 {[%clk 0:02:52]}  O-O {[%clk 0:02:50]} 10. Be3 {[%clk 0:02:50]}  Rb8 {[%clk 0:02:37]} 11. Qd2 {[%clk 0:02:47]}  a6 {[%clk 0:02:35]} 12. Kh2 {[%clk 0:02:47]}  b5 {[%clk 0:02:35]} 13. e5 {[%clk 0:02:46]}  b4 {[%clk 0:01:58]} 14. exf6 {[%clk 0:02:35]}  Bxf6 {[%clk 0:01:50]} 15. Ne4 {[%clk 0:02:28]}  Be7 {[%clk 0:01:48]} 16. Rxf8+ {[%clk 0:02:25]}  Bxf8 {[%clk 0:01:48]} 17. Rf1 {[%clk 0:02:25]}  h6 {[%clk 0:01:47]} 18. Nf6+ {[%clk 0:02:22]}  gxf6 {[%clk 0:01:46]} 19. Bxc6 {[%clk 0:02:22]}  d5 {[%clk 0:01:46]} 20. Bxh6 {[%clk 0:02:16]}  Rb6 {[%clk 0:01:43]} 21. Ba4 {[%clk 0:02:10]}  Bd6 {[%clk 0:01:06]} 22. Qd3 {[%clk 0:02:07]}  f5 {[%clk 0:01:06]} 23. Bf4 {[%clk 0:02:06]}  a5 {[%clk 0:00:57]} 24. Qe3 {[%clk 0:01:55]}  Be7 {[%clk 0:00:28]} 25. Rf2 {[%clk 0:01:48]}  Ba6 {[%clk 0:00:28]} 26. Be5 {[%clk 0:01:46]}  Qf8 {[%clk 0:00:24]} 27. Nf4 {[%clk 0:01:44]}  Qf7 {[%clk 0:00:21]} 28. g4 {[%clk 0:01:33]}  Bg5 {[%clk 0:00:16]} 29. gxf5 {[%clk 0:01:25]}  Qxf5 {[%clk 0:00:17]} 30. Qg3 {[%clk 0:01:24]}  Kh7 {[%clk 0:00:09]} 31. Be8 {[%clk 0:01:22]}  Kh6 {[%clk 0:00:01]} 32. Nxd5 {[%clk 0:01:17]} 1-0


[Site "https://www.chess.com"]

[Event "Titled Tuesday Blitz July 11 Early 2023"]
[White "Lana Rodriguez, David"]
[Black "Zhigalko, Sergei"]
[WhiteFideId "2270803"]
[BlackFideId "13502956"]
[WhiteElo "2604"]
[BlackElo "2874"]
[Result "0-1"]
[Round "7"]
[TimeControl "180+2"]
[Date "2023.07.11"]
[WhiteClock "0:00:01"]
[BlackClock "0:00:04"]
[Board "33"]

1. e4 {[%clk 0:03:00]}  c5 {[%clk 0:03:00]} 2. Nf3 {[%clk 0:03:00]}  Nc6 {[%clk 0:03:00]} 3. c3 {[%clk 0:03:00]}  Nf6 {[%clk 0:03:00]} 4. e5 {[%clk 0:02:59]}  Nd5 {[%clk 0:03:01]} 5. d4 {[%clk 0:02:59]}  cxd4 {[%clk 0:03:02]} 6. Bc4 {[%clk 0:02:59]}  Nb6 {[%clk 0:03:02]} 7. Bb3 {[%clk 0:02:59]}  g6 {[%clk 0:03:02]} 8. cxd4 {[%clk 0:02:51]}  Bg7 {[%clk 0:03:01]} 9. Nc3 {[%clk 0:02:51]}  d5 {[%clk 0:02:53]} 10. exd6 {[%clk 0:02:42]}  Qxd6 {[%clk 0:02:45]} 11. Be3 {[%clk 0:02:35]}  O-O {[%clk 0:02:44]} 12. O-O {[%clk 0:02:33]}  Bf5 {[%clk 0:02:40]} 13. d5 {[%clk 0:02:28]}  Ne5 {[%clk 0:02:38]} 14. Nd4 {[%clk 0:02:25]}  Ng4 {[%clk 0:02:34]} 15. g3 {[%clk 0:01:54]}  Nxe3 {[%clk 0:02:31]} 16. fxe3 {[%clk 0:01:54]}  Bd7 {[%clk 0:02:18]} 17. Ne4 {[%clk 0:01:40]}  Qe5 {[%clk 0:02:14]} 18. Qf3 {[%clk 0:01:37]}  Rad8 {[%clk 0:01:55]} 19. Rae1 {[%clk 0:01:24]}  h5 {[%clk 0:01:35]} 20. Nc3 {[%clk 0:01:11]}  Rc8 {[%clk 0:01:16]} 21. d6 {[%clk 0:01:02]}  e6 {[%clk 0:01:10]} 22. Qxb7 {[%clk 0:01:01]}  Qxd6 {[%clk 0:01:08]} 23. Ne4 {[%clk 0:00:56]}  Qe5 {[%clk 0:00:53]} 24. Qxa7 {[%clk 0:00:51]}  Qxe4 {[%clk 0:00:27]} 25. Qxb6 {[%clk 0:00:51]}  Rfd8 {[%clk 0:00:27]} 26. Qb4 {[%clk 0:00:38]}  Bf8 {[%clk 0:00:12]} 27. Qa5 {[%clk 0:00:23]}  Bc5 {[%clk 0:00:10]} 28. Bc2 {[%clk 0:00:18]}  Qd5 {[%clk 0:00:08]} 29. Bb3 {[%clk 0:00:18]}  Qe4 {[%clk 0:00:07]} 30. Bc2 {[%clk 0:00:18]}  Qb7 {[%clk 0:00:07]} 31. Bb3 {[%clk 0:00:13]}  Be8 {[%clk 0:00:03]} 32. Qd2 {[%clk 0:00:13]}  Qe4 {[%clk 0:00:02]} 33. Qg2 {[%clk 0:00:12]}  Qe5 {[%clk 0:00:02]} 34. Nf3 {[%clk 0:00:12]}  Qf6 {[%clk 0:00:01]} 35. Nd4 {[%clk 0:00:11]}  Qe5 {[%clk 0:00:02]} 36. Nf3 {[%clk 0:00:11]}  Qe4 {[%clk 0:00:02]} 37. Nd4 {[%clk 0:00:10]}  Qxg2+ {[%clk 0:00:02]} 38. Kxg2 {[%clk 0:00:11]}  Bxd4 {[%clk 0:00:03]} 39. exd4 {[%clk 0:00:11]}  Rxd4 {[%clk 0:00:04]} 40. Rc1 {[%clk 0:00:11]}  Rd2+ {[%clk 0:00:03]} 41. Kf3 {[%clk 0:00:11]}  Rcd8 {[%clk 0:00:03]} 42. Rc2 {[%clk 0:00:10]}  R8d3+ {[%clk 0:00:02]} 43. Ke4 {[%clk 0:00:10]}  Rd4+ {[%clk 0:00:02]} 44. Ke3 {[%clk 0:00:08]}  R4d3+ {[%clk 0:00:03]} 45. Ke4 {[%clk 0:00:07]}  Kg7 {[%clk 0:00:03]} 46. Rxd2 {[%clk 0:00:06]}  Rxd2 {[%clk 0:00:04]} 47. Rb1 {[%clk 0:00:06]}  Rxh2 {[%clk 0:00:04]} 48. a4 {[%clk 0:00:05]}  Bc6+ {[%clk 0:00:03]} 49. Kd4 {[%clk 0:00:05]}  Rg2 {[%clk 0:00:03]} 50. Kc5 {[%clk 0:00:05]}  Be4 {[%clk 0:00:02]} 51. Re1 {[%clk 0:00:03]}  Rxb2 {[%clk 0:00:02]} 52. Re3 {[%clk 0:00:03]}  Bg2 {[%clk 0:00:01]} 53. a5 {[%clk 0:00:04]}  g5 {[%clk 0:00:01]} 54. Bc4 {[%clk 0:00:04]}  h4 {[%clk 0:00:01]} 55. gxh4 {[%clk 0:00:04]}  gxh4 {[%clk 0:00:02]} 56. Re5 {[%clk 0:00:04]}  h3 {[%clk 0:00:02]} 57. Rh5 {[%clk 0:00:05]}  Kg6 {[%clk 0:00:02]} 58. Rh8 {[%clk 0:00:05]}  Rc2 {[%clk 0:00:03]} 59. Kb4 {[%clk 0:00:03]}  Kg7 {[%clk 0:00:03]} 60. Rh4 {[%clk 0:00:03]}  Kf6 {[%clk 0:00:03]} 61. a6 {[%clk 0:00:03]}  Kg5 {[%clk 0:00:03]} 62. Rh8 {[%clk 0:00:02]}  Kf4 {[%clk 0:00:02]} 63. Rh6 {[%clk 0:00:02]}  Rc1 {[%clk 0:00:02]} 64. a7 {[%clk 0:00:01]}  Ra1 {[%clk 0:00:02]} 65. Rh7 {[%clk 0:00:01]}  Rxa7 {[%clk 0:00:02]} 66. Rh4+ {[%clk 0:00:01]}  Kg3 {[%clk 0:00:02]} 67. Rh7 {[%clk 0:00:02]}  h2 {[%clk 0:00:03]} 68. Rg7+ {[%clk 0:00:02]}  Kf2 {[%clk 0:00:03]} 69. Rh7 {[%clk 0:00:03]}  h1=Q {[%clk 0:00:03]} 70. Rxh1 {[%clk 0:00:04]}  Bxh1 {[%clk 0:00:04]} 71. Bxe6 {[%clk 0:00:01]}  fxe6 {[%clk 0:00:04]} 0-1


[Site "https://www.chess.com"]